[Event "Ramat Gan Masters-A Winter 2023"]
[Site "Ramat Gan/ISR"]
[Date "2023.02.13"]
[Round "3.6"]
[White "Hasson Shreger, Shalev"]
[Black "Sherman, Reem"]
[Result "0-1"]
[Annotator "TA"]
[ECO "B06"]
[WhiteElo "1823"]
[BlackElo "2249"]
[PlyCount "118"]
[EventDate "2023.01.17"]
[EventType "swiss"]
[SourceTitle "playchess.com"]
[Source "ChessBase"]
[SourceQuality "1"]
[TimeControl "5400+30"]

{[%evp 11,118,29,30,-20,-27,-21,-21,-25,1,-33,-35,-35,-22,-63,-52,-49,-52,-36,-40,-63,-52,-58,-46,-79,-46,-95,-17,-31,-37,-46,-45,-46,-31,-41,-45,-33,-25,-35,-42,-56,-55,-56,-51,-52,-49,-66,-63,-67,-50,-81,-70,-88,-81,-139,-113,-120,-110,-137,-127,-138,-117,-123,-83,-92,-72,-72,-49,-48,-56,-232,-215,-222,-111,-180,-120,-426,-421,-406,-406,-505,-499,-877,-869,-828,-790,-29940,-12850,-29968,-6612,-6295,-5631,-7308,-6628,-6298,-784,-732,-691,-6327,-3377,-29987,-29988,-29988,-29989,-29991,-29989,-29989,-29990,-29993,-29988]} 1. e4 {[%emt 0:00:02]} c5 {[%emt 0:00:49]} 2. Nf3 {[%emt 0:00:12]} g6 {[%emt 0:00:09]} 3. c3 {[%emt 0:00:04]} d5 {[%emt 0:00:08]} 4. exd5 {[%emt 0:00:01]} Qxd5 {[%emt 0:00:09]} 5. d4 {[%emt 0:00:03]} Bg7 {[%emt 0:00:25]} 6. Na3 {[%emt 0:01:17]} cxd4 {[%emt 0:00:05]} 7. cxd4 {[%emt 0:00:13] B06: Modern Defence.} (7. Nb5 $142 Na6 8. Be2 (8. Nbxd4 Nf6 $11)) 7... Nf6 $11 {[%emt 0:01:16]} 8. Bc4 {[%emt 0:00:12]} Qd8 {[%emt 0:04:46]} 9. O-O {[%emt 0:01:59] The position is equal.} O-O {[%emt 0:00:36]} 10. h3 {[%emt 0:00:39]} (10. Ne5 {is more complex.} Nc6 11. Re1 Nd5 12. Bg5) 10... a6 {[%emt 0:02:43]} 11. Nc2 {[%emt 0:04:00]} b5 {[%emt 0:04:58]} 12. Bb3 {[%emt 0:00:01]} Bb7 {[%emt 0:01:06]} 13. Ne5 {[%emt 0:15:13]} Nc6 {[%emt 0:05:13] [#]} 14. Nxc6 $146 {[%emt 0:07:14]} ({Predecessor:} 14. Bf4 Na5 15. Re1 Rc8 16. Ne3 Nxb3 17. axb3 Nd5 18. Bg3 e6 19. Qd2 h5 20. Rac1 Nxe3 21. fxe3 {½-½ Mamedov,R (2654)-Maghsoodloo,P (2698) Europe Echecs Blitz May op 2021 (7)}) 14... Bxc6 {[%emt 0:00:10]} 15. Be3 {[%emt 0:00:46]} Nd5 {[%emt 0:04:13]} 16. Qd2 {[%emt 0:01:52]} Qd6 {[%emt 0:03:10]} 17. Rfd1 {[%emt 0:07:40]} Rfd8 {[%emt 0:08:07]} 18. Ne1 {[%emt 0:02:12]} (18. Bg5 $15) 18... Nb6 {[%emt 0:13:39]} (18... Nxe3 $17 19. fxe3 e5) 19. Rac1 {[%emt 0:00:58][%cal Od4d5]} Rac8 {[%emt 0:03:51]} (19... Bd5 {simplifies} 20. Bxd5 Nxd5 21. Nf3 Rac8) 20. Rc5 {[%emt 0:27:07]} Bb7 {[%emt 0:07:56]} 21. Qe2 {[%emt 0:29:15]} e6 {[%emt 0:09:55]} 22. Nf3 {[%emt 0:00:00] [#]} Nc4 $1 {[%emt 0:02:33]} 23. Bg5 {[%emt 0:00:00]} (23. Rxc8 Rxc8) 23... f6 {[%emt 0:01:05] Hoping for ...Bxf3.} 24. Rxc8 {[%emt 0:00:00]} Rxc8 {[%emt 0:00:37]} 25. Bh4 {[%emt 0:00:00]} Bd5 {[%emt 0:00:39]} 26. Bg3 {[%emt 0:00:00]} Qd7 {[%emt 0:00:19]} 27. Rc1 {[%emt 0:00:00]} Bf8 {[%emt 0:04:22][%cal Bg7f8,Bf8e7,Be7d6,Bd6f4][%mdl 32]} 28. Bf4 {[%emt 0:00:00]} Kf7 {[%emt 0:02:04]} 29. h4 {[%emt 0:00:00][%cal Oh4h5]} Be7 {[%emt 0:00:58]} 30. Be3 {[%emt 0:00:00]} Bd6 {[%emt 0:02:25]} 31. h5 {[%emt 0:00:00]} g5 {[%emt 0:01:17] Black is much more active.} (31... gxh5 $6 32. Nd2 $15) 32. Bc2 {[%emt 0:00:00]} (32. Rc3 $142) 32... Kg8 {[%emt 0:01:18]} (32... Nxb2 33. Bxh7 Nc4 34. Qd3 $15) 33. Bd3 {[%emt 0:00:45]} Nxe3 {[%emt 0:00:47]} 34. Rxc8+ {[%emt 0:00:16]} Qxc8 {[%emt 0:00:06]} 35. Qxe3 {[%emt 0:00:44]} Bf4 {[%emt 0:01:29] This pair of bishops is nice.} 36. Qe1 {[%emt 0:00:17]} Bxa2 {[%emt 0:00:33] aiming for ...Qc1.} 37. g3 {[%emt 0:00:04]} Bd6 {[%emt 0:01:47]} 38. Qe4 {[%emt 0:06:24]} Qc7 $36 {[%emt 0:00:39][%mdl 2048] ...Bd5 is the strong threat. Black has good play.} 39. Qa8+ {[%emt 0:00:00]} Kg7 {[%emt 0:00:07]} 40. Qe4 {[%emt 0:00:00] [#]} (40. h6+ Kxh6 41. Nh2 f5 42. Qxa6 Bd5 $17) ({White should try} 40. Qxa6 $15 Bd5 41. Ne1) 40... Kh6 $1 $19 {[%emt 0:02:42] ...Bd5 would be deadly.} 41. Qe3 {[%emt 0:00:00] [#]} Qf7 {[%emt 0:02:56]} (41... Kxh5 42. Nxg5 fxg5 43. Qf3+ Kh6 44. Qf6+ Kh5 45. Qf3+ Kh6 46. Qf6+ Kh5 47. Be2+ (47. Qf3+ Kh6 $11) 47... g4 48. f3 Qc1+ 49. Kg2 $11) (41... Bd5 $1 $19 {[%cal Od6g3] And now ...Bxg3! would win.} 42. Be4 Qc6) 42. Nh2 {[%emt 0:00:00]} (42. Nd2 $17) 42... Qxh5 {[%emt 0:01:39]} ({Black should play} 42... f5 $19 43. Nf3 Qe7) 43. Qe4 $2 {[%emt 0:00:00][%mdl 8192]} (43. Nf1 $17) 43... Qd1+ {[%emt 0:00:48]} (43... f5 $2 44. Qe1 $19) 44. Nf1 {[%emt 0:00:00][%csl Gd3][%cal Re4h7]} f5 {[%emt 0:00:08]} 45. Qc6 {[%emt 0:00:52]} Bxg3 {[%emt 0:03:47][%mdl 64] Pin} 46. Bc2 {[%emt 0:00:58] [#]} (46. Qc8 $142 Bd6 47. Bxf5) 46... Bh2+ $1 {[%emt 0:00:41][%mdl 512]} 47. Kxh2 {[%emt 0:02:40]} Qxf1 {[%emt 0:04:50][%mdl 4096] Endgame KQB-KQB} 48. b3 {[%emt 0:00:00]} Qxf2+ {[%emt 0:00:00]} 49. Kh1 {[%emt 0:00:00]} Qe1+ {[%emt 0:00:00]} ({And not} 49... Qxd4 50. Qxe6+ Kg7 51. Qe7+ Kg6 52. Qe8+ Kh6 53. Qe6+ Kh5 54. Qe8+ Kg4 55. Qe2+ Kh4 56. Qh2+ Kg4 57. Qe2+ Kh4 58. Qh2+ Kg4 59. Qe2+ $11) (49... Qf1+ $142 50. Kh2 Qf4+ 51. Kh3 g4+ 52. Kg2 Qd2+ 53. Kg3 Kg5 54. Qc5 Kh5 55. Bxf5 Qe3+ 56. Kg2 Qf3+ 57. Kg1 exf5 58. Qe7 Qd1+ 59. Kh2 Qc2+ 60. Kg1 Bxb3 61. d5 Qc1+ 62. Kf2 Qd2+ 63. Qe2 Qxe2+ 64. Kxe2 Bxd5 65. Kf2 f4 66. Ke2 g3 67. Kd3 f3 68. Kd4 g2 69. Ke5 g1=Q 70. Kd6 f2 71. Ke7 f1=Q 72. Kd6 Qf6+ 73. Kd7 Qgg7+ 74. Ke8 Qff8#) 50. Kh2 {[%emt 0:00:00]} Qe2+ {[%emt 0:00:00]} 51. Kh1 {[%emt 0:00:00]} g4 {[%emt 0:00:00]} 52. Qc8 {[%emt 0:00:23]} Qf3+ {[%emt 0:00:00]} 53. Kg1 {[%emt 0:00:07]} Qe3+ {[%emt 0:00:00]} ({Not} 53... Bxb3 54. Qf8+ Kh5 55. Qf7+ Kh6 56. Qf8+ Kh5 57. Qf7+ Kh6 58. Qf6+ Kh5 59. Qf7+ $11) 54. Kh1 {[%emt 0:00:08]} Kh5 {[%emt 0:00:00] ( -> ...f4)} 55. Qh8 {[%emt 0:01:17]} Qc1+ {[%emt 0:00:05] Black mates.} 56. Kg2 {[%emt 0:00:28]} Qxc2+ {[%emt 0:00:06]} 57. Kg3 {[%emt 0:00:02]} Qc7+ {[%emt 0:00:30]} 58. Kg2 {[%emt 0:03:05]} Bxb3 {[%emt 0:00:19]} 59. Qe8+ {[%emt 0:00:00]} Kh6 {[%emt 0:00:07] Weighted Error Value: White=0.70/Black=0.47} 0-1

[Event "Ramat Gan Masters-A Winter 2023"]
[Site "Ramat Gan/ISR"]
[Date "2023.02.13"]
[Round "3.7"]
[White "Sobel, Ido"]
[Black "Goz, Shachar"]
[Result "1-0"]
[Annotator "NA RC COMBH"]
[ECO "B23"]
[WhiteElo "1871"]
[BlackElo "1623"]
[PlyCount "47"]
[EventDate "2023.01.17"]
[EventType "swiss"]
[SourceTitle "playchess.com"]
[Source "ChessBase"]
[SourceQuality "1"]
[TimeControl "5400+30"]

1. e4 {[%emt 0:13:31]} c5 {[%emt 0:00:04]} 2. Nc3 {[%emt 0:00:20]} e6 {[%emt 0:00:04]} 3. f4 {[%emt 0:00:35]} Nc6 {[%emt 0:00:07]} 4. Nf3 {[%emt 0:00:24]} Nf6 {[%emt 0:01:17]} 5. Bb5 {[%emt 0:00:39]} a6 {[%emt 0:00:41]} 6. Bxc6 {[%emt 0:00:03]} bxc6 {[%emt 0:00:06]} 7. d3 {[%emt 0:00:25]} d5 {[%emt 0:00:33]} 8. O-O {[%emt 0:01:18]} Be7 {[%emt 0:00:05]} 9. b3 {[%emt 0:06:32]} a5 {[%emt 0:03:22]} 10. e5 {[%emt 0:03:17]} Nd7 {[%emt 0:00:35]} 11. Na4 {[%emt 0:01:28]} Nb6 {[%emt 0:02:20]} 12. Nxb6 {[%emt 0:02:44]} Qxb6 {[%emt 0:01:01]} 13. c4 {[%emt 0:00:01]} a4 {[%emt 0:01:39]} 14. Bb2 {[%emt 0:04:32]} a3 {[%emt 0:14:27]} 15. Bc3 {[%emt 0:02:10]} Bd7 {[%emt 0:01:48]} 16. Qe1 {[%emt 0:02:32]} Rb8 {[%emt 0:02:25]} 17. Qg3 {[%emt 0:02:12]} Rg8 {[%emt 0:01:01]} 18. Rae1 {[%emt 0:06:55]} h6 {[%emt 0:02:17]} 19. f5 {[%emt 0:15:14]} exf5 {[%emt 0:03:52]} 20. e6 {[%emt 0:00:10]} Bxe6 {[%emt 0:00:52]} 21. Rxe6 {[%emt 0:00:08]} fxe6 {[%emt 0:00:20]} 22. Qg6+ {[%emt 0:00:07]} Kd8 {[%emt 0:03:29]} 23. Qxe6 {[%emt 0:00:29]} d4 {[%emt 0:04:51]} 24. Ne5 {[%emt 0:01:32]} 1-0

[Event "Ramat Gan Masters-A Winter 2023"]
[Site "Ramat Gan/ISR"]
[Date "2023.02.13"]
[Round "3.8"]
[White "Malachi, Avraham"]
[Black "Gurevich, Neria"]
[Result "1/2-1/2"]
[Annotator "TA"]
[ECO "C00"]
[WhiteElo "1975"]
[BlackElo "1543"]
[PlyCount "57"]
[EventDate "2023.01.17"]
[EventType "swiss"]
[SourceTitle "playchess.com"]
[Source "ChessBase"]
[SourceQuality "1"]
[TimeControl "5400+30"]

{[%evp 18,57,-38,-41,39,32,95,0,0,0,0,0,68,0,6,3,9,9,9,9,3,5,8,8,0,-25,8,-79,-25,-212,0,-20,0,0,0,0,0,0,0,0,0,0]} 1. e4 {[%emt 0:00:05]} c5 {[%emt 0:00:08]} 2. Nf3 {[%emt 0:00:04]} e6 {[%emt 0:00:12]} 3. d3 {[%emt 0:00:06]} Nc6 {[%emt 0:00:39]} 4. g3 {[%emt 0:00:15]} d5 {[%emt 0:00:44]} 5. Nbd2 {[%emt 0:00:07]} Nf6 {[%emt 0:00:41]} 6. Bg2 {[%emt 0:00:23]} Be7 {[%emt 0:00:35]} 7. O-O {[%emt 0:00:16]} O-O {[%emt 0:00:45]} 8. Re1 {[%emt 0:00:11]} b5 {[%emt 1:30:46]} 9. e5 {[%emt 0:00:39]} Nd7 {[%emt 0:00:00]} 10. h4 {[%emt 0:06:40]} f6 {[%emt 0:00:00] C00: French: Unusual White 2nd moves.} (10... a5 $15) 11. exf6 $14 {[%emt 0:01:25]} Bxf6 {[%emt 0:00:00]} (11... Nxf6 $14 12. c4 bxc4 13. dxc4 h6) 12. Bh3 {[%emt 0:17:55]} (12. Rxe6 $6 Nde5 13. Nxe5 Bxe6 14. Nxc6 Qd6 $15) ({White should try} 12. Nb3 $16) 12... Nde5 $11 {[%emt 0:00:00]} 13. Nxe5 {[%emt 0:00:44]} Bxe5 {[%emt 0:00:00] [#]} 14. Nf3 $146 {[%emt 0:02:13]} ({Predecessor:} 14. f4 Bxf4 15. gxf4 Qxh4 16. Bg2 Qxf4 17. Ne4 Qe5 18. Ng5 Qg3 19. Be3 Ne5 20. Qh5 {1-0 Savory,R (2101)-Nicholson,J (1945) Monarch Assurance 15th 2006 (8)}) 14... Qf6 {[%emt 0:00:00]} (14... Bd6 $11) 15. Bg2 {[%emt 0:11:50]} (15. Nxe5 $1 $14 Nxe5 16. f4) 15... Bxb2 {[%emt 0:00:00]} 16. Bxb2 {[%emt 0:00:59]} Qxb2 {[%emt 0:00:00]} 17. Rb1 {[%emt 0:13:39]} Qf6 {[%emt 0:00:00]} 18. Rxb5 {[%emt 0:01:17] next Qd2 is good for White.} Nd4 {[%emt 0:00:00]} 19. Nxd4 {[%emt 0:00:10]} Qxf2+ {[%emt 0:00:00]} ({Resist} 19... Qxd4 20. Qe2 $16) 20. Kh2 {[%emt 0:00:20]} Qxd4 {[%emt 0:00:00]} 21. Qd2 {[%emt 0:08:03]} Rf2 {[%emt 0:00:00]} 22. Qg5 {[%emt 0:04:42]} (22. Re2 $11 Rxe2 23. Qxe2) 22... Ba6 {[%emt 0:00:00]} (22... Rxc2 23. Qd8+ Kf7 24. Rbb1 $18) (22... h6 $17 23. Qg6 Qc3) 23. Rbb1 $2 {[%emt 0:03:25] [#]} (23. Ra5 $11 {and White is okay.} Raf8 24. Qe5 (24. Rxa6 Rxg2+ {[%mdl 64] Decoy} 25. Kxg2 Qf2+ 26. Kh3 Qxe1 $17)) 23... Raf8 $2 {[%emt 0:00:00]} (23... Rxc2 $19 24. Qe7 Qf6 25. Qxf6 gxf6 26. Rxe6 Bxd3) 24. Rxe6 {[%emt 0:02:15] The position is equal.} (24. Qe7 $5 {[%cal Re7e6]}) 24... Rxg2+ {[%emt 0:00:00]} 25. Kxg2 {[%emt 0:00:07]} Qf2+ $1 {[%emt 0:00:00]} (25... Bc8 $2 26. Re3 $18) (25... Bxd3 $2 26. cxd3 h6 27. Qe3 Qxe3 28. Rxe3 $18) 26. Kh1 $1 {[%emt 0:00:29]} ({Avoid the trap} 26. Kh3 $2 Bc8 27. Qe5 Rf6 $19) 26... Qf3+ {[%emt 0:00:00]} (26... Qxc2 $2 27. Qxd5 Kh8 28. Rbe1 $18) 27. Kh2 {[%emt 0:02:07]} Qf2+ {[%emt 0:00:00]} 28. Kh1 $1 {[%emt 0:00:02]} ({Not} 28. Kh3 $2 Bc8 29. Qe5 Rf6 $19 {[%mdl 64] Pin}) 28... Qf3+ {[%emt 0:00:00]} (28... Qxc2 $2 29. Qxd5 Kh8 30. Rbe1 $18) 29. Kh2 {[%emt 0:00:24] Weighted Error Value: White=0.29 (precise) /Black=0.35} 1/2-1/2

[Event "Ramat Gan Masters-A Winter 2023"]
[Site "Ramat Gan/ISR"]
[Date "2023.02.13"]
[Round "3.9"]
[White "Neumann, Amit"]
[Black "Azoulay, Yehonatan"]
[Result "1-0"]
[Annotator "NA RC COMBH"]
[ECO "B30"]
[WhiteElo "1615"]
[BlackElo "1770"]
[PlyCount "53"]
[EventDate "2023.01.17"]
[EventType "swiss"]
[SourceTitle "playchess.com"]
[Source "ChessBase"]
[SourceQuality "1"]
[TimeControl "5400+30"]

1. e4 {[%emt 0:00:03]} c5 {[%emt 0:00:03]} 2. Nf3 {[%emt 0:00:05]} Nc6 {[%emt 0:00:28]} 3. b4 {[%emt 0:00:44]} cxb4 {[%emt 0:03:42]} 4. d4 {[%emt 0:00:30]} g6 {[%emt 0:00:58]} 5. a3 {[%emt 0:01:03]} bxa3 {[%emt 0:03:52]} 6. h4 {[%emt 0:01:56]} h6 {[%emt 0:00:22]} 7. d5 {[%emt 0:03:01]} Bg7 {[%emt 0:01:27]} 8. Rxa3 {[%emt 0:00:57]} Nb8 {[%emt 0:02:52]} 9. Bb5 {[%emt 0:07:04]} Nf6 {[%emt 0:09:38]} 10. e5 {[%emt 0:10:28]} Ng4 {[%emt 0:00:36]} 11. h5 {[%emt 0:03:10]} Qb6 {[%emt 0:00:23]} 12. Qe2 {[%emt 0:00:57]} O-O {[%emt 0:09:40]} 13. Ra4 {[%emt 0:18:24]} gxh5 {[%emt 0:08:30]} 14. Rxh5 {[%emt 0:00:33]} d6 {[%emt 0:00:03]} 15. e6 {[%emt 0:01:47]} f5 {[%emt 0:01:03]} 16. Rxf5 {[%emt 0:23:41]} Rxf5 {[%emt 0:00:27]} 17. Rxg4 {[%emt 0:00:14]} Rh5 {[%emt 0:01:15]} 18. Bb2 {[%emt 0:01:57]} Rh1+ {[%emt 0:01:51]} 19. Kd2 {[%emt 0:01:27]} Rxb1 {[%emt 0:01:11]} 20. Rxg7+ {[%emt 0:00:31]} Kf8 {[%emt 0:00:41]} 21. Ng5 {[%emt 0:02:41]} Qa5+ {[%emt 0:02:22]} 22. Bc3 {[%emt 0:00:46]} Qxc3+ {[%emt 0:00:09]} 23. Kxc3 {[%emt 0:00:05]} Kxg7 {[%emt 0:00:07]} 24. Qf3 {[%emt 0:00:37]} hxg5 {[%emt 0:00:25]} 25. Qf7+ {[%emt 0:00:03]} Kh8 {[%emt 0:00:17]} 26. Bd3 {[%emt 0:00:05]} Rh1 {[%emt 0:00:10]} 27. Qf8# {[%emt 0:00:04]} 1-0

[Event "Ramat Gan Masters-A Winter 2023"]
[Site "Ramat Gan/ISR"]
[Date "2023.02.13"]
[Round "3.10"]
[White "Lapushnian, Maya"]
[Black "Shapira, Avner"]
[Result "1-0"]
[Annotator "NA RC COMBH"]
[ECO "B90"]
[WhiteElo "1707"]
[BlackElo "1814"]
[PlyCount "39"]
[EventDate "2023.01.17"]
[EventType "swiss"]
[SourceTitle "playchess.com"]
[Source "ChessBase"]
[SourceQuality "1"]
[TimeControl "5400+30"]

1. e4 {[%emt 0:00:03]} c5 {[%emt 0:00:17]} 2. Nf3 {[%emt 0:00:04]} d6 {[%emt 0:00:05]} 3. d4 {[%emt 0:00:05]} cxd4 {[%emt 0:00:06]} 4. Nxd4 {[%emt 0:00:04]} Nf6 {[%emt 0:00:12]} 5. Nc3 {[%emt 0:00:09]} a6 {[%emt 0:00:07]} 6. h4 {[%emt 0:00:05]} b5 {[%emt 0:01:33]} 7. a4 {[%emt 0:00:15]} b4 {[%emt 0:00:26]} 8. Nd5 {[%emt 0:00:09]} Nxe4 {[%emt 0:08:40]} 9. Bc4 {[%emt 0:01:56]} e6 {[%emt 0:01:56]} 10. Qf3 {[%emt 0:21:17]} f5 {[%emt 0:23:09]} 11. Nxf5 {[%emt 0:10:12]} exf5 {[%emt 0:12:17]} 12. g4 {[%emt 0:00:16]} g6 {[%emt 0:27:33]} 13. h5 {[%emt 0:01:35]} Bg7 {[%emt 0:02:41]} 14. hxg6 {[%emt 0:15:12]} hxg6 {[%emt 0:00:02]} 15. Rxh8+ {[%emt 0:00:16]} Bxh8 {[%emt 0:00:07]} 16. Qh3 {[%emt 0:00:40]} Bg7 {[%emt 0:03:28]} 17. Qh7 {[%emt 0:02:13]} Kf8 {[%emt 0:00:21]} 18. Nf4 {[%emt 0:06:26]} Qf6 {[%emt 0:09:15]} 19. Qg8+ {[%emt 0:00:11]} Ke7 {[%emt 0:00:02]} 20. Nd5+ {[%emt 0:00:08]} 1-0

[Event "Ramat Gan Masters-A Winter 2023"]
[Site "Ramat Gan/ISR"]
[Date "2023.02.13"]
[Round "4.1"]
[White "Levitan, Ronit"]
[Black "Karp, Ilya"]
[Result "0-1"]
[Annotator "TA"]
[ECO "B30"]
[WhiteElo "2064"]
[BlackElo "2392"]
[PlyCount "84"]
[EventDate "2023.01.17"]
[EventType "swiss"]
[SourceTitle "playchess.com"]
[Source "ChessBase"]
[SourceQuality "1"]
[TimeControl "5400+30"]

{[%evp 10,84,29,29,44,36,29,30,23,36,23,26,36,39,61,54,54,64,50,53,61,46,44,55,53,56,200,208,285,218,209,-5,-5,-5,-5,-5,-6,-8,-11,-11,-8,-10,-14,-35,-34,-28,-37,-34,0,-84,-57,-57,-53,-54,-53,-332,-337,-597,-556,-616,-614,-625,-581,-637,-622,-785,-678,-2490,-2061,-29979,-29979,-29995,-29996,-29996,-29997,-29997,-29998]} 1. e4 {[%emt 0:01:01]} c5 {[%emt 0:00:05]} 2. Nf3 {[%emt 0:00:17]} Nc6 {[%emt 0:00:13]} 3. Bb5 {[%emt 0:00:28]} e6 {[%emt 0:01:18]} 4. O-O {[%emt 0:02:04]} Nge7 {[%emt 0:00:06]} 5. d4 {[%emt 0:00:13]} cxd4 {[%emt 0:01:03]} 6. Nxd4 {[%emt 0:00:12]} a6 {[%emt 0:01:55] [#] ...Nxd4 is the strong threat. B30: Sicilian: 2...Nc6 3 Bb5, lines without ...g6.} 7. Be2 {[%emt 0:00:42]} Nxd4 {[%emt 0:02:09] 7...Ng6 is more fashionable.} 8. Qxd4 {[%emt 0:00:06]} Nc6 {[%emt 0:00:03] White has an edge.} 9. Qc3 {[%emt 0:01:04]} b5 {[%emt 0:07:07]} 10. Qg3 {[%emt 0:13:09]} Bb7 {[%emt 0:07:22]} 11. c3 {[%emt 0:02:23] Against Nd4} (11. Bg5 {looks sharper.} Bd6 12. Qxd6 Qxg5 13. Nd2) 11... h5 {[%emt 0:07:12] [#]} 12. Be3 $146 {[%emt 0:02:40]} ({Predecessor:} 12. Bg5 h4 13. Qg4 Ne5 14. Bxd8 Nxg4 15. Bb6 Nf6 16. f3 Nh5 17. Be3 Bd6 18. Rd1 Bf4 19. Bf2 Bc6 20. Nd2 {1-0 Saypuri,S (2172)-Damljanovic,B (2436) Belgrade Radnicki IM2 10 2022 (5)}) 12... h4 {[%emt 0:12:00]} 13. Qh3 {[%emt 0:03:02]} Qc7 {[%emt 0:00:29]} 14. Nd2 {[%emt 0:00:39]} Ne5 {[%emt 0:01:06]} 15. a4 {[%emt 0:06:52][%cal Ba2a4,Ba4b5,Bb5a6][%mdl 32]} Nc4 {[%emt 0:12:39]} 16. axb5 {[%emt 0:00:13]} Nxe3 {[%emt 0:00:09]} 17. Qxe3 {[%emt 0:00:23][%cal Rb5a6]} (17. fxe3 axb5 18. Rxa8+ (18. Bxb5 Rxa1 19. Rxa1 Qb6 $15) 18... Bxa8 $11) 17... Bd6 {[%emt 0:00:28]} (17... axb5 $14 18. Rxa8+ (18. Bxb5 Bd6 $14) 18... Bxa8) 18. bxa6 $18 {[%emt 0:06:34]} Bxh2+ {[%emt 0:02:39]} 19. Kh1 {[%emt 0:00:05]} Bf4 {[%emt 0:02:06]} 20. Qd3 {[%emt 0:03:54] [#]} (20. axb7 Rxa1 21. Qf3 Rxf1+ 22. Nxf1 Bc1 $17) ({White must play} 20. Qd4 $18 Bc6 21. Nc4 (21. Qxg7 Ke7 $16)) 20... Rxa6 $11 {[%emt 0:13:13][%mdl 64] Deflection} 21. Rxa6 {[%emt 0:00:24]} Bxa6 {[%emt 0:00:01]} 22. Qxa6 {[%emt 0:00:20] Black must now prevent Nf3.} Bxd2 {[%emt 0:00:03]} 23. Rd1 {[%emt 0:04:59]} Bf4 {[%emt 0:00:03][%cal Bd2f4,Bf4e5,Be5b8][%mdl 32]} 24. Qa8+ {[%emt 0:11:39]} (24. Qa3 {feels hotter.} Qb6 25. Kg1 g6 26. Rd4) 24... Qd8 {[%emt 0:01:25]} 25. Qa3 {[%emt 0:00:38] And now Bb5 would win.} Qb6 {[%emt 0:03:41] Repels Bb5} 26. Rd4 {[%emt 0:04:40]} (26. Kg1 {keeps more tension.} g6 27. c4 Be5 28. c5) 26... Be5 {[%emt 0:05:53]} 27. Ra4 {[%emt 0:11:04]} Bb8 {[%emt 0:09:04]} 28. e5 {[%emt 0:12:56]} f6 {[%emt 0:06:46][%cal Bf7f6,Bf6f5][%mdl 32]} 29. Ra8 {[%emt 0:02:05]} (29. exf6 $11 {keeps the balance.} gxf6 30. Qb4 (30. Ra8 $2 Qc7 $19) 30... Qxb4 31. Rxb4) 29... Kf7 {[%emt 0:00:44]} (29... fxe5 {simplifies} 30. Qa6 Qc7 31. Qa5 Qxa5 32. Rxa5 e4) 30. Qa4 {[%emt 0:04:13]} Qxf2 $40 {[%emt 0:00:51][%mdl 128] White needs to defend precisely.} 31. Qxd7+ {[%emt 0:00:09]} Kg6 {[%emt 0:00:00] Really sharp!} 32. Qd3+ $2 {[%emt 0:01:43][%mdl 8192]} ({Wrong is} 32. Bd3+ $2 Kh6 33. Qd4 (33. Qxe6 {gets mated.} Qe1+) 33... Qe1+ 34. Qg1 Qxe5 $19) ({White has to play} 32. Qd2 $15 Qg3 33. Qd3+ Qxd3 34. Bxd3+ f5 35. Kg1) 32... f5 $19 {[%emt 0:00:02][%cal Oh4h3]} 33. Qf3 {[%emt 0:01:13]} (33. Ra1 h3 34. gxh3 Bxe5 35. Rg1+ Kf6 36. Rg2) 33... Qe1+ {[%emt 0:00:17]} 34. Qf1 {[%emt 0:00:05]} Qg3 {[%emt 0:00:09] ( -> ...h3)} 35. Qf3 {[%emt 0:00:21]} Qxe5 {[%emt 0:00:14][%csl Gb8][%cal Re5h2]} 36. Rxb8 {[%emt 0:01:04]} Qxb8 {[%emt 0:00:06][%mdl 4096] Endgame KQR-KQB} 37. Qc6 {[%emt 0:00:48]} Qe5 {[%emt 0:00:27]} ({Inferior is} 37... Qxb2 38. Qxe6+ Kh7 39. Qxf5+ g6 40. Qf7+ Kh6 41. Qf4+ Kh7 42. Qf7+ Kh6 43. Qf4+ Kh7 44. Qf7+ $11) 38. Bc4 {[%emt 0:01:02]} Kf6 {[%emt 0:00:54]} 39. b4 {[%emt 0:00:30]} h3 {[%emt 0:01:28] Black mates.} 40. b5 {[%emt 0:01:05]} hxg2+ {[%emt 0:00:41]} 41. Kxg2 {[%emt 0:00:08]} Rh2+ {[%emt 0:00:12]} 42. Kf1 {[%emt 0:00:38]} Qf4+ {[%emt 0:00:08] Quite a comeback for Black.   Weighted Error Value: White=0.72/Black=0.25 (precise)} 0-1